bitfinex/quotes_ETHUSD_20251119
["timestamp","ask_amount","ask_price","bid_price","bid_amount"]
[1763570591593,0.1416,2967.4,2965.3,0.001]
[1763570591594,0.405504,2966.6,2965.3,0.001]
[1763570592038,0.405504,2966.4,2965.3,0.001]
[1763570592439,0.405504,2966.2,2965.3,0.001]
[1763570592624,0.193,2966.3,2965.3,0.1861]
[1763570593440,0.405504,2966.2,2965.3,0.001]
[1763570593864,0.193,2966.3,2965.3,0.001]
[1763570595364,0.871304,2966.2,2965.3,0.001]
[1763570595875,0.405504,2966.0,2965.3,0.001]
[1763570596668,0.193,2965.4,2965.3,0.001]
[1763570596825,0.4658,2965.9,2965.3,0.001]
[1763570597626,0.405504,2965.8,2965.3,0.001]
[1763570598029,0.405504,2965.6,2965.3,0.001]
[1763570598449,0.405504,2965.4,2965.3,0.001]
[1763570598670,0.871304,2965.4,2965.3,0.001]
[1763570599640,0.405504,2965.2,2964.7,0.001]
[1763570600034,0.405504,2965.0,2964.7,0.001]
[1763570600439,0.405504,2964.8,2964.7,0.001]
[1763570600837,0.871304,2964.8,2964.7,0.001]
[1763570601439,0.405504,2964.7,2963.0,0.001]
[1763570601649,0.871304,2964.7,2963.0,0.001]
[1763570601870,0.871304,2964.7,2963.1,0.4739]
[1763570602033,0.4658,2964.6,2963.1,0.4739]
[1763570602239,0.4658,2964.6,2963.2,0.4739]
[1763570602435,0.193,2966.3,2963.3,0.90699264]
[1763570602436,0.4658,2965.1,2963.3,0.90699264]
[1763570602881,0.4658,2965.1,2963.4,0.4739]
[1763570603264,0.4658,2965.1,2963.5,0.1851]
[1763570603693,0.4658,2965.1,2963.6,0.4739]
[1763570603906,0.4658,2965.1,2963.5,0.1851]
[1763570604084,0.405504,2965.0,2963.5,0.1851]
[1763570604603,0.405504,2964.8,2963.5,0.1851]
[1763570604769,0.405504,2964.8,2963.2,0.4739]
[1763570604965,0.405504,2964.6,2963.0,0.001]
[1763570605361,0.405504,2964.4,2963.5,0.001]
[1763570605864,0.405504,2964.2,2963.5,0.001]
[1763570606413,0.405504,2964.0,2963.5,0.001]
[1763570606929,0.405504,2963.8,2963.5,0.001]
[1763570607494,0.405504,2963.6,2963.5,0.001]
[1763570607679,0.865704,2963.6,2963.5,0.001]
[1763570608266,0.405504,2963.6,2963.5,0.001]
[1763570608788,0.865704,2963.6,2963.5,0.001]
[1763570608990,0.602104,2963.6,2963.5,0.001]
[1763570609164,0.4602,2964.1,2963.5,0.001]
[1763570609364,0.405504,2964.0,2963.5,0.001]
[1763570609569,0.1492,2964.3,2963.5,0.001]
[1763570609960,0.405504,2964.2,2963.5,0.001]
[1763570610575,0.4602,2964.8,2963.5,0.001]
[1763570610997,0.1966,2965.0,2963.6,0.4737]
[1763570611609,0.002,2965.4,2963.6,0.4737]
[1763570611812,0.002,2965.4,2963.6,1.38069264]
[1763570611813,0.4622,2965.4,2963.6,1.38069264]
[1763570612197,0.4622,2965.4,2963.7,0.4737]
[1763570613127,0.405504,2965.3,2963.7,0.4737]
[1763570613421,0.4622,2965.4,2963.7,0.4737]
[1763570613627,0.4622,2965.4,2965.3,6.95385306]
[1763570613628,0.002,2965.4,2965.3,6.95385306]
[1763570613830,0.002,2965.7,2965.4,0.90699264]
[1763570614053,0.002,2965.7,2965.4,0.4737]
[1763570614321,0.002,2965.7,2965.3,0.1988]
[1763570614501,0.002,2965.7,2964.8,0.1988]
[1763570614702,0.405504,2965.6,2964.4,0.4737]
[1763570615113,0.405504,2965.4,2964.4,0.4737]
[1763570616413,0.405504,2965.4,2964.0,0.4737]
[1763570617301,0.405504,2965.2,2963.6,0.4737]
[1763570617694,0.405504,2965.0,2963.5,0.001]
[1763570618134,0.405504,2964.8,2963.5,0.001]
[1763570618561,0.405504,2964.6,2963.5,0.001]
[1763570619270,0.4588,2965.3,2963.8,6.75505306]
[1763570619425,0.6487,2965.8,2963.8,6.75505306]
[1763570619625,0.4588,2965.6,2963.9,0.4911]
[1763570620176,0.405504,2965.5,2963.9,0.4911]
[1763570620376,0.1899,2965.8,2963.9,0.4911]
[1763570620377,0.405504,2965.3,2963.9,0.4911]
[1763570620728,0.405504,2965.2,2963.9,0.4911]
[1763570621182,0.002,2965.7,2963.9,0.4911]
[1763570621183,0.407504,2965.7,2965.2,0.339]
[1763570621387,0.89424435,2967.7,2965.8,0.90699264]
[1763570621680,0.4588,2968.3,2966.7,6.75505306]
[1763570621840,0.4588,2968.1,2966.7,6.75505306]
[1763570622372,0.4588,2968.5,2966.8,0.4911]
[1763570622925,0.6554,2968.2,2966.6,0.1936]
[1763570623126,0.6554,2968.2,2966.7,7.24615306]
[1763570623537,0.6554,2968.2,2966.8,0.4911]
[1763570624484,0.4608,2968.1,2966.6,0.1936]
[1763570624777,0.4608,2968.1,2966.2,7.24615306]
[1763570624778,0.405504,2968.0,2966.2,7.43975306]
[1763570625272,0.4588,2967.9,2966.2,7.43975306]
[1763570626139,0.405504,2967.8,2966.2,0.6847]
[1763570626578,0.405504,2967.6,2966.2,0.6847]
[1763570626745,0.1899,2967.5,2966.2,0.6847]
[1763570627279,0.6487,2967.5,2966.2,0.6847]
[1763570627577,0.4588,2967.4,2966.2,0.6847]
[1763570627868,0.4588,2967.4,2965.6,0.5958]
[1763570628238,0.4588,2967.4,2965.4,6.75505306]
[1763570628977,0.405504,2967.3,2965.4,6.75505306]
[1763570629274,0.405504,2967.3,2965.1,0.4911]
[1763570629470,0.405504,2967.1,2965.1,0.4911]
[1763570629696,1.31249664,2967.1,2965.0,0.001]
[1763570629901,1.31249664,2966.9,2965.0,0.001]
[1763570630085,0.405504,2966.7,2965.0,0.001]
[1763570630600,0.405504,2966.5,2965.0,0.001]
[1763570631100,0.405504,2966.3,2965.0,0.001]
[1763570631477,0.4588,2966.8,2965.1,0.4911]
[1763570631999,0.405504,2966.7,2965.1,0.4911]
[1763570632216,0.4588,2966.8,2965.4,6.75505306]
[1763570632499,0.4588,2967.2,2965.4,6.75505306]
[1763570632714,0.4588,2967.2,2965.5,0.4911]
[1763570633016,0.405504,2967.1,2965.5,0.4911]
[1763570633384,0.90699264,2967.8,2965.0,0.90799264]
[1763570633385,0.405504,2966.9,2965.0,0.90799264]
[1763570633583,0.405504,2966.9,2965.0,1.39909264]
[1763570633782,0.405504,2966.7,2965.1,0.4911]
[1763570634082,0.405504,2967.4,2965.5,0.90699264]
[1763570634083,0.4588,2967.4,2965.5,0.90699264]
[1763570634495,0.4588,2967.4,2965.6,0.4911]
[1763570634674,0.405504,2967.3,2965.6,0.4911]
[1763570634873,0.405504,2967.3,2965.7,0.1936]
[1763570635171,0.405504,2967.1,2965.6,0.4911]
[1763570635604,0.4588,2967.3,2965.7,0.03371885]
[1763570635779,0.405504,2967.2,2965.6,0.4911]
[1763570636588,0.4588,2967.2,2965.6,0.4911]
[1763570637226,0.405504,2967.1,2965.6,0.4911]
[1763570637730,0.405504,2966.9,2965.6,0.4911]
[1763570639926,0.405504,2966.7,2965.6,0.4911]
[1763570640729,0.405504,2966.5,2965.3,0.1936]
[1763570640894,0.1899,2966.8,2965.4,0.4911]
[1763570641227,0.405504,2966.8,2965.4,0.4911]
[1763570641587,0.6487,2967.5,2965.7,8.12251941]
[1763570641793,0.4588,2967.4,2965.4,0.4911]
[1763570641993,0.405504,2967.3,2965.4,0.4911]
[1763570642224,0.405504,2967.1,2965.4,0.4911]
[1763570642637,0.405504,2966.9,2965.4,0.4911]
[1763570642843,0.405504,2966.9,2965.5,0.339]
[1763570643000,0.405504,2966.7,2965.4,0.4911]
[1763570643200,0.6487,2967.5,2965.4,8.61361941]
[1763570643389,0.6487,2967.5,2965.5,0.4911]
[1763570643596,0.4588,2967.4,2965.5,1.39809264]
[1763570643832,0.1899,2967.8,2966.4,8.12251941]
[1763570643994,0.002,2967.9,2966.4,8.12251941]
[1763570643995,0.002,2967.9,2966.5,1.59169264]
[1763570644199,0.002,2967.9,2967.5,0.1502]
[1763570644423,0.002,2967.9,2967.5,0.6413]
[1763570646046,0.002,2967.9,2967.5,4.91813257]
[1763570646347,0.002,2967.9,2967.6,0.4911]
[1763570646852,0.002,2967.9,2967.2,0.1936]
[1763570648021,0.002,2967.9,2966.6,0.4859]
[1763570648217,0.405504,2967.7,2966.5,0.1936]
[1763570648415,0.405504,2967.7,2966.2,0.1979]
[1763570648744,0.002,2967.9,2966.2,0.1979]
[1763570648745,0.405504,2967.5,2966.2,0.1979]
[1763570648948,0.405504,2967.5,2965.9,0.1979]
[1763570649128,0.405504,2967.3,2965.9,0.1979]
[1763570649324,0.405504,2967.3,2966.0,0.4859]
[1763570649648,0.1968,2967.6,2965.5,0.4859]
[1763570649649,0.405504,2967.1,2965.5,0.4859]
[1763570649810,0.405504,2966.9,2965.5,0.4859]
[1763570650441,0.1968,2967.6,2965.5,0.4859]
[1763570650609,0.903404,2967.5,2965.5,0.4859]
[1763570650815,0.903404,2967.5,2965.5,1.39289264]
[1763570651015,0.4979,2967.4,2965.6,0.4859]
[1763570651210,0.405504,2967.3,2965.7,0.1979]
[1763570651617,0.404704,2967.3,2965.8,0.4859]
[1763570652018,0.1968,2967.6,2965.8,0.4859]
[1763570652223,0.4979,2967.2,2965.8,0.4859]
[1763570652561,0.4979,2967.2,2965.3,0.1936]
[1763570652735,0.1213,2965.9,2965.0,0.001]
[1763570653057,0.6192,2965.9,2965.0,0.001]
[1763570653451,0.1968,2965.1,2965.0,0.001]
[1763570653650,0.405504,2965.0,2964.4,0.001]
[1763570654035,0.903404,2965.0,2964.4,0.001]
[1763570654226,0.405504,2965.0,2964.4,0.001]
[1763570655063,0.4979,2964.9,2964.4,0.001]
[1763570655267,0.405504,2964.8,2964.4,0.001]
[1763570655679,0.903404,2964.8,2964.4,0.001]
[1763570657364,0.405504,2964.8,2964.4,0.001]
[1763570657730,0.903404,2964.8,2964.4,0.001]
[1763570658336,0.405504,2964.8,2964.4,0.001]
[1763570658953,0.4979,2964.8,2964.4,0.001]
[1763570659280,3.99957664,2964.7,2963.5,0.001]
[1763570659459,1.31249664,2964.1,2963.5,0.001]
[1763570659674,1.31249664,2963.9,2963.5,0.001]
[1763570659876,0.602304,2963.6,2963.5,0.001]
[1763570660081,0.405504,2963.5,2963.0,0.001]
[1763570660251,0.903404,2963.5,2963.0,0.001]
[1763570660457,0.405504,2963.3,2963.0,0.001]
[1763570660657,0.903404,2963.3,2963.0,0.001]
[1763570661363,0.4979,2963.9,2963.0,0.001]
[1763570661582,0.405504,2963.9,2963.0,0.001]
[1763570661779,0.405504,2963.7,2963.5,0.001]
[1763570662287,0.1968,2964.0,2963.5,0.001]
[1763570662288,0.903404,2963.6,2963.5,0.001]
[1763570662451,0.903404,2963.6,2963.0,0.001]
[1763570662452,0.405504,2963.5,2963.0,0.001]
[1763570662653,0.405504,2963.3,2963.0,0.001]
[1763570663094,0.865104,2963.3,2963.0,0.001]
[1763570666656,0.405504,2963.3,2963.0,0.001]
[1763570666869,0.89923408,2965.2,2963.2,0.4727]
[1763570667072,0.1968,2965.4,2963.8,0.1856]
[1763570667316,0.1968,2965.4,2963.2,0.4727]
[1763570667317,0.4596,2965.1,2963.2,0.4727]
[1763570667531,8.12251941,2964.2,2963.2,0.001]
[1763570667844,1.71924458,2964.1,2963.2,0.001]
[1763570668027,2.17884458,2964.1,2963.2,0.001]
[1763570668201,0.1839,2963.3,2963.2,0.001]
[1763570668611,0.1839,2963.3,2962.9,0.001]
[1763570668612,3.876908,2963.2,2962.9,0.001]
[1763570668846,1.31249664,2963.0,2962.8,0.001]
[1763570669163,1.31249664,2963.0,2962.5,0.001]
[1763570669164,0.4925912,2963.1,2962.5,0.001]
[1763570669359,0.4596,2963.2,2962.5,0.001]
[1763570669511,0.1839,2963.6,2962.5,0.001]
[1763570670347,0.1839,2964.0,2962.6,0.4717]
[1763570671140,0.4596,2963.9,2962.6,0.4717]
[1763570671338,0.405504,2963.8,2962.6,0.4717]
[1763570672361,0.405504,2963.9,2962.6,0.4717]
[1763570672570,0.865104,2963.9,2962.5,0.001]
[1763570673057,0.405504,2963.7,2962.5,0.001]
[1763570674283,0.405504,2963.9,2962.6,0.4717]
[1763570674841,0.865104,2963.9,2962.6,0.4717]
[1763570676074,0.405504,2963.7,2962.5,0.001]
[1763570676379,0.405504,2963.5,2962.5,0.001]
[1763570676563,0.405504,2963.7,2962.5,0.001]
[1763570676771,0.404704,2963.7,2962.5,0.001]
[1763570677660,0.4596,2963.6,2962.5,0.001]
[1763570678683,11.90226641,2963.5,2962.5,0.001]
[1763570678985,0.598804,2962.6,2962.5,0.001]
[1763570679171,1.091004,2962.6,2962.5,0.001]
[1763570680144,0.405504,2962.6,2962.5,0.001]
[1763570681070,0.897704,2962.6,2962.5,0.001]
[1763570681792,1.80469664,2962.6,2962.5,0.001]
[1763570681953,1.89042561,2962.6,2962.5,0.001]
[1763570684269,1.80469664,2962.5,2962.0,0.001]
[1763570684469,4.06149652,2962.5,2962.0,0.001]
[1763570684790,1.31249664,2962.3,2962.0,0.001]
[1763570685093,0.405504,2962.1,2962.0,0.001]
[1763570685303,0.405504,2962.2,2962.0,0.001]
[1763570685483,0.897704,2962.1,2962.0,0.001]
[1763570685651,3.64376668,2962.1,2962.0,0.001]
[1763570685852,6.58296568,2962.1,2962.0,0.001]
[1763570686075,1.31249664,2962.0,2960.1,0.4776]
[1763570686432,1.31249664,2961.7,2960.1,0.4776]
[1763570686720,1.31249664,2961.5,2960.1,0.4776]
[1763570686931,8.12251941,2961.8,2960.1,0.4776]
[1763570686932,0.405504,2961.3,2960.1,0.4776]
[1763570687493,0.405504,2961.3,2960.1,0.001]
[1763570687706,0.598804,2960.2,2960.1,0.001]
[1763570688120,1.091004,2960.2,2960.1,0.001]
[1763570689010,0.598804,2960.2,2960.1,0.001]
[1763570689319,1.091004,2960.2,2960.1,0.001]
[1763570689975,1.99799664,2960.2,2960.1,0.001]
[1763570690209,3.01004825,2960.2,2960.1,0.001]
[1763570690577,1.41755561,2960.2,2960.1,0.001]
[1763570690779,0.897704,2960.2,2960.1,0.001]
[1763570693879,0.405504,2960.2,2960.1,0.001]
[1763570694412,0.897704,2960.2,2960.1,0.001]
[1763570695098,1.80469664,2960.2,2960.1,0.001]
[1763570697011,1.31249664,2960.2,2960.1,0.001]
[1763570697396,3.37707869,2961.2,2960.1,0.001]
[1763570697397,0.1933,2960.9,2960.1,0.1832]
[1763570698020,0.4922,2960.8,2960.1,0.001]
[1763570699105,0.405504,2960.7,2960.1,0.001]
[1763570700415,0.405504,2960.5,2960.1,0.001]
[1763570700745,1.31249664,2960.3,2960.1,0.001]
[1763570700919,8.11786983,2960.2,2960.1,0.001]
[1763570701118,8.11786983,2960.2,2959.9,0.001]
[1763570701324,4.86949664,2959.7,2957.0,0.1822]
[1763570701503,11.67486983,2959.6,2957.0,0.1822]
[1763570701703,1.80469664,2959.0,2957.4,0.4766]
[1763570702232,0.405504,2958.8,2957.4,0.4766]
[1763570702806,0.897704,2958.8,2957.4,0.4766]
[1763570703011,1.31249664,2958.4,2957.0,0.1822]
[1763570703213,1.31249664,2958.2,2957.0,0.1822]
[1763570703437,3.256854,2958.3,2956.7,0.1822]
[1763570703438,8.11786983,2958.0,2956.7,0.1822]
[1763570703636,8.11786983,2958.0,2956.8,0.4766]
[1763570703838,0.405504,2958.0,2956.8,0.4766]
[1763570704021,0.405504,2958.1,2956.8,0.4766]
[1763570704343,0.405504,2958.3,2956.8,0.4766]
[1763570704548,0.405504,2958.1,2956.7,0.1822]
[1763570704799,0.405504,2958.1,2955.6,0.001]
[1763570704800,1.31249664,2957.4,2956.1,0.1832]
[1763570704952,0.81178698,2957.3,2956.2,0.4766]
[1763570705122,0.4922,2958.6,2957.3,0.1822]
[1763570705321,0.4922,2958.6,2956.2,0.4766]
[1763570705322,0.90699264,2958.4,2956.2,0.4766]
[1763570705536,6.80537319,2958.0,2956.3,0.4766]
[1763570705744,0.90699264,2958.0,2956.3,0.4766]
[1763570706055,1.31249664,2957.4,2956.1,0.1832]
[1763570706215,1.31249664,2956.9,2956.1,0.001]
[1763570706414,0.598804,2956.2,2956.1,0.001]
[1763570706667,0.405504,2957.8,2956.2,0.4766]
[1763570706943,0.405504,2957.6,2956.2,0.4766]
[1763570707142,0.405504,2957.4,2956.2,0.4766]
[1763570707344,0.405504,2957.8,2956.2,0.4766]
[1763570707544,0.405504,2957.8,2956.3,0.03382606]
[1763570707755,0.405504,2958.1,2956.2,0.4766]
[1763570708467,1.31249664,2957.6,2956.2,0.4766]
[1763570708697,1.31249664,2957.2,2956.1,0.001]
[1763570708991,1.31249664,2956.8,2956.1,0.001]
[1763570709447,0.405504,2956.6,2956.1,0.001]
[1763570709863,0.91664285,2957.5,2956.1,0.001]
[1763570709864,0.4633,2957.3,2956.1,0.4915]
[1763570710188,0.405504,2957.2,2956.1,0.4915]
[1763570710346,0.405504,2957.0,2956.1,0.4915]
[1763570710980,0.17757966,2957.1,2956.1,0.4915]
[1763570711145,0.1933,2958.9,2956.2,0.94081985]
[1763570711348,0.1933,2958.9,2956.5,7.85393189]
[1763570711587,0.85105319,2958.8,2956.9,7.85393189]
[1763570711782,0.4633,2959.5,2956.9,7.85393189]
[1763570711783,0.4633,2959.5,2957.0,0.4905]
[1763570712182,7.85393189,2959.3,2957.0,0.4905]
[1763570712542,1.37029264,2959.2,2957.0,0.4905]
[1763570712796,0.4633,2959.8,2957.1,6.80596033]
[1763570712959,0.4633,2959.8,2957.0,0.4905]
[1763570712960,9.373539,2959.8,2957.7,0.90699264]
[1763570713166,1.1426324,2960.4,2957.7,0.90699264]
[1763570713167,0.4633,2960.4,2957.8,0.90699264]
[1763570713405,0.90699264,2960.1,2957.9,0.4905]
[1763570713549,6.80596033,2960.2,2958.0,0.13]
[1763570713747,1.18594671,2961.3,2958.0,0.13]
[1763570713748,0.88946003,2961.5,2960.1,0.1894]
[1763570713982,0.1818,2961.6,2960.1,0.6799]
[1763570714155,0.4633,2961.5,2960.1,0.6799]
[1763570714355,0.4633,2961.5,2960.2,0.4905]
[1763570715102,0.90699264,2961.3,2959.8,0.1894]
[1763570715380,0.002,2959.9,2959.8,0.1894]
[1763570715589,0.002,2959.9,2959.8,0.6799]
[1763570716092,0.002,2959.9,2959.1,0.6799]
[1763570716295,0.002,2959.9,2959.1,0.1894]
[1763570716865,0.002,2959.9,2959.1,0.6799]
[1763570717097,0.002,2959.9,2958.5,0.4905]
[1763570717306,0.002,2959.9,2958.0,0.13]
[1763570717307,0.405504,2959.7,2958.0,0.13]
[1763570717461,0.405504,2959.8,2958.1,0.4905]
[1763570717655,0.90899264,2959.9,2958.1,0.4905]
[1763570717656,0.405504,2959.6,2958.1,0.4905]
[1763570718197,0.002,2959.9,2958.1,0.4905]
[1763570718699,0.002,2959.9,2958.1,1.39749264]
[1763570718878,0.002,2959.9,2958.2,0.4905]
[1763570719475,0.002,2959.9,2959.8,0.1894]
[1763570719866,0.002,2959.9,2959.8,0.6799]
[1763570720263,0.002,2959.9,2959.5,0.1894]
[1763570720702,0.002,2959.9,2959.5,0.6799]
[1763570720899,0.002,2959.9,2959.6,0.4905]
[1763570722797,0.002,2959.9,2959.5,0.1894]
[1763570722996,0.002,2959.9,2959.1,0.1894]
[1763570723207,0.002,2959.9,2959.2,0.4905]
[1763570723935,0.002,2959.9,2958.4,0.1894]
[1763570723936,0.405504,2959.7,2958.4,0.1894]
[1763570724134,0.407504,2959.9,2956.8,0.4687]
[1763570724135,0.405504,2959.5,2958.1,0.1894]
[1763570724321,0.405504,2959.3,2958.1,0.1894]
[1763570724522,0.405504,2959.3,2957.8,0.4905]
[1763570724725,0.405504,2959.1,2957.7,0.1894]
[1763570725047,0.405504,2958.9,2957.7,0.1894]
[1763570725200,0.90699264,2959.3,2957.7,0.1894]
[1763570725201,0.90699264,2959.3,2957.7,0.6846]
[1763570725401,6.80796033,2959.9,2957.7,0.6846]
[1763570725402,0.405504,2959.5,2957.7,0.6846]
[1763570725605,0.405504,2959.5,2957.8,0.4952]
[1763570725829,0.405504,2959.4,2957.8,0.4952]
[1763570726332,0.407504,2959.9,2957.8,0.4952]
[1763570726520,0.406704,2959.9,2957.8,0.4952]
[1763570727410,0.405504,2959.7,2957.8,0.4952]
[1763570727599,9.816123,2959.6,2957.8,0.4952]
[1763570727800,0.405504,2959.4,2957.8,0.4952]
[1763570728341,0.405504,2959.2,2957.8,0.4952]
[1763570729348,0.4512,2959.1,2957.8,0.4952]
[1763570729511,0.405504,2959.0,2957.7,0.1894]
[1763570729920,0.405504,2958.8,2957.7,0.1894]
[1763570730320,0.405504,2958.8,2957.7,0.6846]
[1763570730509,0.856704,2958.8,2957.7,0.1894]
[1763570731214,0.856704,2958.8,2957.7,0.6846]
[1763570731657,0.405504,2958.8,2957.8,0.4952]
[1763570731806,0.601704,2959.2,2957.8,0.4962]
[1763570732010,1.31249664,2959.0,2957.8,0.001]
[1763570732208,8.98066033,2959.1,2957.8,0.001]
[1763570732209,1.31249664,2958.8,2957.8,0.001]
[1763570732414,1.31249664,2958.6,2957.8,0.001]
[1763570732609,0.405504,2958.7,2957.8,0.001]
[1763570732814,1.31249664,2958.5,2957.8,0.001]
[1763570733010,0.405504,2958.5,2957.8,0.001]
[1763570733317,1.0293157,2958.9,2957.8,0.001]
[1763570733531,0.59913483,2958.8,2957.8,0.001]
[1763570734219,0.19363083,2958.8,2957.9,0.4952]
[1763570734421,0.4512,2959.0,2958.0,0.1961]
[1763570735044,0.0012,2959.9,2958.0,0.1961]
[1763570735045,0.0012,2959.9,2958.0,0.6913]
[1763570735253,0.0012,2959.9,2958.0,7.49726033]
[1763570735436,0.0012,2959.9,2958.6,6.80596033]
[1763570735639,0.0012,2959.9,2959.8,0.1961]
[1763570735955,0.0012,2959.9,2959.5,0.1961]
[1763570736160,0.0012,2959.9,2959.3,0.1961]
[1763570736865,0.0012,2959.9,2959.4,0.4952]
[1763570742031,0.0012,2959.9,2959.3,0.1961]
[1763570742262,0.0012,2959.9,2959.4,0.4962]
[1763570743762,0.002,2960.5,2959.5,3.37894914]
[1763570744064,0.002,2960.5,2960.1,0.0878]
[1763570744421,0.002,2960.5,2960.1,0.584]
[1763570744624,0.002,2960.5,2959.8,0.1968]
[1763570744823,0.002,2960.5,2959.9,0.4962]
[1763570745451,0.002,2960.5,2959.8,0.1968]
[1763570745754,0.002,2960.5,2959.8,0.693]
[1763570745956,0.002,2960.5,2959.8,0.1968]
[1763570746160,0.002,2960.5,2959.8,0.693]
[1763570746322,0.002,2960.5,2959.8,0.1968]
[1763570746522,0.002,2960.5,2959.4,0.4962]
[1763570747432,0.002,2960.5,2960.1,0.1968]
[1763570747630,0.002,2960.5,2960.1,0.693]
[1763570747952,0.002,2960.5,2959.8,0.1968]
[1763570749046,0.002,2960.5,2959.8,0.693]
[1763570749654,0.002,2960.5,2959.9,0.4962]
[1763570750782,0.407504,2960.5,2959.3,0.6923]
[1763570750923,0.407504,2960.5,2957.7,3.38197001]
[1763570750924,0.405504,2960.0,2959.0,0.1968]
[1763570751123,0.4509,2960.1,2957.7,0.001]
[1763570751124,0.6431,2959.9,2958.1,0.4962]
[1763570751463,1.55009264,2959.9,2958.1,0.4962]
[1763570751661,1.38946966,2959.8,2958.1,0.4962]
[1763570752159,0.4509,2959.8,2958.1,0.4962]
[1763570752356,0.1914,2959.9,2958.1,0.4962]
[1763570752656,0.6423,2959.9,2958.1,0.4962]
[1763570752960,0.90699264,2959.8,2957.8,0.001]
[1763570753125,11.24329094,2959.7,2958.1,0.4962]
[1763570753330,0.405504,2959.5,2958.1,0.4962]
[1763570753873,0.4509,2959.6,2958.1,0.4962]
[1763570753874,0.405504,2959.3,2958.1,0.4962]
[1763570754279,0.405504,2959.1,2958.1,0.4962]
[1763570754479,0.405504,2959.1,2957.8,0.001]
[1763570754777,0.405504,2958.9,2957.8,0.001]
[1763570755363,0.405504,2959.6,2957.8,0.001]
[1763570755566,0.405504,2959.3,2958.0,0.6933]
[1763570755740,0.405504,2959.3,2958.1,0.03380548]
[1763570756074,0.405504,2959.2,2958.1,0.4962]
[1763570756641,0.405504,2959.0,2958.1,0.4962]
[1763570756843,0.405504,2959.0,2958.0,0.001]
[1763570757079,0.71327086,2959.7,2958.0,0.001]
[1763570757080,0.405504,2958.8,2958.0,0.001]
[1763570757779,0.856404,2958.8,2958.0,0.001]
[1763570758241,0.405504,2958.6,2958.0,0.001]
[1763570758987,0.4509,2958.6,2958.0,0.001]
[1763570760686,0.1922,2958.9,2958.1,0.1968]
[1763570760891,0.4509,2958.8,2958.0,0.001]
[1763570761093,0.405504,2958.7,2958.0,0.001]
[1763570761341,0.405504,2958.7,2957.5,0.001]
[1763570761342,1.42909664,2957.9,2957.5,0.001]
[1763570761492,1.31249664,2957.5,2955.9,0.001]
[1763570761907,1.31249664,2957.5,2956.1,0.1978]
[1763570761908,0.405504,2957.3,2956.1,0.1978]
[1763570762229,0.405504,2957.3,2956.1,0.001]
[1763570762426,0.405504,2957.3,2956.1,0.1978]
[1763570762427,0.856404,2957.3,2956.1,0.1978]
[1763570762731,0.405504,2957.3,2956.2,0.03382721]
[1763570762906,0.405504,2957.3,2956.5,0.4962]
[1763570763079,0.405504,2957.3,2956.1,0.1978]
[1763570763080,0.5675,2957.9,2957.1,0.1968]
[1763570763279,0.405504,2957.9,2956.9,0.693]
[1763570763478,0.1922,2958.4,2957.2,0.4972]
[1763570763801,0.1922,2959.1,2957.2,0.4972]
[1763570764009,0.6431,2959.1,2957.2,0.4972]
[1763570764213,0.4509,2959.0,2957.2,0.4972]
[1763570764377,0.1922,2959.5,2957.2,1.40419264]
[1763570764776,0.4509,2959.4,2957.3,0.4962]
[1763570765375,0.405504,2959.3,2957.3,0.4962]
[1763570765817,0.4509,2959.2,2957.3,0.4962]
[1763570766001,0.405504,2959.1,2957.3,0.4962]
[1763570766782,0.1922,2959.5,2957.3,0.4962]
[1763570766980,0.405504,2959.4,2957.3,0.4962]
[1763570767878,0.405504,2959.2,2957.3,0.4962]
[1763570768594,0.1914,2959.9,2959.1,0.1064]
[1763570769015,0.4592,2960.3,2959.1,0.5848]
[1763570769218,0.002,2960.5,2959.1,0.5848]
[1763570769391,0.002,2960.5,2960.1,0.1968]
[1763570769924,0.002,2960.5,2960.1,0.6778]
[1763570770812,0.002,2960.5,2959.7,0.6778]
[1763570771218,0.002,2960.5,2959.7,0.1994]
[1763570771420,0.002,2960.5,2959.7,0.6778]
[1763570771603,0.002,2960.5,2959.8,0.4784]
[1763570772545,0.407504,2960.5,2959.4,0.1994]
[1763570772857,0.405504,2960.3,2959.2,0.4784]
[1763570773032,0.002,2960.5,2959.2,0.4784]
[1763570774152,0.002,2960.5,2960.1,0.1941]
[1763570774357,0.002,2960.5,2960.1,0.1994]
[1763570774550,0.002,2960.5,2959.7,0.1994]
[1763570774706,0.002,2960.5,2959.5,0.4784]
[1763570774910,0.002,2960.5,2958.6,7.95914578]
[1763570774911,0.405504,2959.5,2958.8,0.1994]
[1763570775236,0.4592,2960.1,2958.4,0.4784]
[1763570775237,0.405504,2960.0,2958.4,0.4784]
[1763570775434,0.405504,2959.3,2957.5,0.4784]
[1763570775614,0.405504,2959.3,2958.1,0.4784]
[1763570776011,0.405504,2959.3,2957.6,0.4784]
[1763570776012,0.4592,2959.3,2957.6,0.4784]
[1763570776346,0.4592,2959.3,2957.4,0.4784]
[1763570776544,0.03074273,2959.4,2957.4,0.4784]
[1763570776921,0.03074273,2959.4,2957.2,0.001]
[1763570776922,0.90699264,2959.2,2957.2,0.001]
[1763570777108,0.90699264,2959.0,2957.2,0.001]
[1763570777452,8.86613842,2958.8,2957.2,0.001]